bitfinex-derivatives/quotes_ETHF0:USTF0_20220106
["timestamp","ask_amount","ask_price","bid_price","bid_amount"]
[1641439219948,2.00479,3486.4,3486.1,1.08710658]
[1641439220847,0.229991,3486.3,3486.1,1.08710658]
[1641439221548,2.00479,3486.4,3486.1,1.08710658]
[1641439221948,0.229991,3486.3,3486.1,1.08710658]
[1641439222149,2.00479,3486.4,3486.1,1.08710658]
[1641439222749,0.229991,3486.3,3486.1,1.08710658]
[1641439224555,1.84333284,3486.4,3486.1,1.08710658]
[1641439224852,4.19792589,3486.4,3485.6,2.00479]
[1641439225352,4.19792589,3486.4,3485.7,0.132394]
[1641439225353,2.35459305,3486.4,3485.7,0.132394]
[1641439225553,2.35459305,3486.4,3486.3,2.00479]
[1641439225753,2.35459305,3486.4,3486.3,2.137184]
[1641439225953,2.35459305,3486.5,3486.3,2.137184]
[1641439227053,0.6085435,3486.4,3486.3,3.10192986]
[1641439227254,1.84421817,3486.4,3486.3,4.20475842]
[1641439227656,1.84421817,3486.4,3486.3,6.20954842]
[1641439228153,0.6085435,3486.4,3486.3,6.20954842]
[1641439228355,2.35459305,3486.9,3486.3,5.24480256]
[1641439229554,2.35459305,3486.9,3486.4,1.0]
[1641439229756,2.35459305,3486.9,3486.7,2.00479]
[1641439229955,0.6085435,3486.8,3486.7,2.00479]
[1641439231154,0.6085435,3486.9,3486.7,2.00479]
[1641439232456,0.6085435,3487.0,3486.7,2.00479]
[1641439233259,0.229991,3486.9,3486.7,2.00479]
[1641439233557,0.6085435,3487.0,3486.7,2.00479]
[1641439234458,0.229991,3486.9,3486.7,2.00479]
[1641439234659,0.3249435,3487.0,3486.7,2.00479]
[1641439235263,0.3249435,3487.0,3486.9,1.5]
[1641439235561,4.35938305,3487.2,3486.9,1.5]
[1641439235562,2.35459305,3487.2,3486.9,2.93304047]
[1641439235859,2.35459305,3487.2,3487.1,3.50479]
[1641439236460,2.35459305,3487.2,3487.1,4.7128642]
[1641439236860,3.94956649,3487.5,3487.1,4.7128642]
[1641439236861,2.35459305,3487.4,3487.1,4.7128642]
[1641439237061,2.35459305,3487.4,3487.2,0.132394]
[1641439237662,2.35459305,3487.4,3487.3,2.00479]
[1641439238364,0.81140246,3487.5,3487.3,2.00479]
[1641439238563,1.23497641,3487.4,3487.3,2.00479]
[1641439239766,2.35459305,3488.2,3487.2,2.132394]
[1641439239965,2.35459305,3487.8,3487.2,2.132394]
[1641439240164,2.35459305,3487.8,3487.2,0.18567106]
[1641439240766,2.35459305,3488.0,3487.2,0.18567106]
[1641439241666,2.35459305,3488.0,3487.5,2.00479]
[1641439241866,2.35459305,3488.0,3487.6,0.132394]
[1641439242068,2.35459305,3488.0,3487.7,1.5]
[1641439242268,2.35459305,3488.0,3487.5,3.43761487]
[1641439242269,2.35459305,3488.0,3487.9,1.5]
[1641439242870,2.35459305,3488.0,3487.8,0.132394]
[1641439243068,2.35459305,3488.0,3487.9,1.1548469]
[1641439243669,2.35459305,3488.0,3487.9,3.1596369]
[1641439244070,2.58458405,3488.0,3487.9,3.1596369]
[1641439244275,0.229991,3488.0,3487.9,1.1548469]
[1641439245976,2.35459305,3488.1,3487.9,1.1548469]
[1641439246175,0.229991,3488.0,3487.9,1.1548469]
[1641439246375,2.35459305,3488.1,3487.9,1.1548469]
[1641439246977,2.35459305,3488.2,3487.9,1.1548469]
[1641439247377,1.5,3488.1,3487.9,1.1548469]
[1641439247578,1.5,3488.1,3487.2,0.05327706]
[1641439247879,2.00479,3487.8,3487.2,0.05327706]
[1641439248076,2.00479,3487.8,3487.3,0.132394]
[1641439248478,2.00479,3487.8,3487.4,1.2339426]
[1641439249877,2.35459305,3488.1,3487.4,1.2339426]
[1641439253096,2.31152435,3488.3,3487.4,1.3663366]
[1641439253394,2.31152435,3488.3,3487.7,1.5]
[1641439253595,2.31152435,3488.3,3487.4,1.2339426]
[1641439253796,2.31152435,3488.3,3488.2,2.00479]
[1641439254094,3.08203246,3488.5,3487.8,2.00479]
[1641439254095,2.31152435,3488.6,3487.8,2.00479]
[1641439254896,2.31152435,3488.6,3487.9,0.132394]
[1641439255098,2.31152435,3488.6,3487.9,1.29870272]
[1641439255297,12.24,3488.5,3487.9,1.16630872]
[1641439255498,13.74,3488.5,3487.9,1.16630872]
[1641439255801,2.00479,3488.1,3487.9,1.16630872]
[1641439255998,0.229991,3488.0,3487.9,1.16630872]
[1641439256398,12.469991,3488.0,3487.9,1.16630872]
[1641439256599,0.229991,3488.0,3487.9,1.16630872]
[1641439257199,0.83820298,3488.0,3487.9,1.16630872]
[1641439257599,13.07820298,3488.0,3487.3,2.00479]
[1641439257900,0.83820298,3488.0,3487.3,2.00479]
[1641439259000,0.83820298,3488.0,3487.4,1.0002696]
[1641439259906,2.45678176,3487.9,3487.4,1.0002696]
[1641439260107,2.45678176,3487.9,3487.4,1.1326636]
[1641439260910,2.45678176,3487.9,3487.4,1.0002696]
[1641439261308,0.60821198,3487.9,3487.4,1.0002696]
[1641439262509,1.84856978,3487.7,3487.4,1.0002696]
[1641439262710,0.229991,3487.6,3487.4,1.0002696]
[1641439263311,1.84856978,3487.7,3487.4,1.0002696]
[1641439263512,0.229991,3487.6,3487.4,1.0002696]
[1641439264311,2.45678176,3487.5,3487.4,1.0002696]
[1641439266411,3.95678176,3487.5,3487.4,1.0002696]
[1641439266613,3.95678176,3487.5,3487.2,0.05327706]
[1641439266614,0.229991,3487.4,3487.2,0.05327706]
[1641439266812,1.5,3487.3,3487.2,0.05327706]
[1641439267216,1.5,3487.3,3486.9,2.00479]
[1641439267613,12.24,3487.2,3486.9,2.00479]
[1641439267815,0.229991,3487.1,3486.8,0.97211943]
[1641439268013,1.5,3487.0,3486.7,1.06861775]
[1641439268215,1.5,3486.8,3486.3,1.62019905]
[1641439268414,1.5,3486.4,3486.1,2.34268366]
[1641439268616,1.5,3486.2,3486.1,2.34268366]
[1641439269915,16.24958,3486.2,3486.1,2.34268366]
[1641439270314,16.24958,3486.2,3486.1,1.04459872]
[1641439270716,16.85779198,3486.2,3486.1,1.04459872]
[1641439270915,17.08778298,3486.2,3486.1,1.04459872]
[1641439271717,17.89882999,3486.2,3486.1,1.04459872]
[1641439273527,5.42883899,3486.2,3486.1,1.04459872]
[1641439273925,3.42404899,3486.2,3486.1,1.04459872]
[1641439274124,3.65403999,3486.2,3486.1,1.04459872]
[1641439274325,3.42404899,3486.2,3486.1,1.04459872]
[1641439274725,1.41925899,3486.2,3486.1,1.04459872]
[1641439275128,0.60821198,3486.2,3486.1,1.04459872]
[1641439275729,1.198e-05,3486.2,3486.1,1.04459872]
[1641439275929,1.84687355,3486.7,3486.1,3.18178272]
[1641439276130,1.5,3486.6,3486.1,1.04459872]
[1641439276530,1.84687355,3486.7,3486.1,1.04459872]
[1641439277130,12.24,3486.8,3486.1,1.04459872]
[1641439277931,2.00479,3486.4,3486.1,1.04459872]
[1641439278132,0.229991,3486.3,3486.1,1.04459872]
[1641439278433,2.00479,3486.4,3486.1,1.04459872]
[1641439279033,0.229991,3486.3,3486.1,1.04459872]
[1641439279233,2.00479,3486.4,3486.1,1.04459872]
[1641439279834,1.23261733,3486.4,3486.2,0.132394]
[1641439280934,1.23261733,3486.6,3486.2,0.132394]
[1641439281935,1.23261733,3486.6,3486.2,2.137184]
[1641439282536,4.66291615,3487.1,3486.2,2.137184]
[1641439282537,1.23261733,3486.8,3486.3,1.29802289]
[1641439282736,1.23261733,3486.8,3486.3,1.43041689]
[1641439283738,1.23261733,3486.9,3486.3,1.43041689]
[1641439285438,1.23261733,3487.0,3486.4,1.29802289]
[1641439286039,1.23261733,3487.0,3486.5,0.132394]
[1641439286338,1.23261733,3487.0,3486.5,1.43041689]
[1641439287342,1.84687355,3487.6,3486.8,1.5]
[1641439287540,1.23279992,3487.1,3487.0,1.5]
[1641439287741,1.84687355,3487.6,3487.0,1.5]
[1641439287942,1.84687355,3487.6,3487.5,2.00479]
[1641439288541,1.84687355,3487.6,3487.5,2.137184]
[1641439290343,14.24479,3488.3,3487.5,3.2276708]
[1641439290544,14.24479,3488.3,3487.5,4.7276708]
[1641439290843,14.24479,3488.3,3487.5,3.2276708]
[1641439291546,14.24479,3488.3,3487.5,4.20014301]
[1641439291747,0.81095465,3488.2,3487.5,4.20014301]
[1641439292956,2.6578282,3488.2,3487.5,3.2276708]
[1641439294150,14.8978282,3488.2,3487.5,3.2276708]
[1641439294350,2.6578282,3488.2,3487.5,3.2276708]
[1641439295050,1.84687355,3488.0,3487.5,3.2276708]
[1641439295349,1.84687355,3488.0,3487.5,4.7276708]
[1641439295649,3.122479,3488.2,3487.9,1.5]
[1641439295849,3.122479,3488.2,3488.1,1.5]
[1641439296049,3.122479,3488.2,3488.1,3.50479]
[1641439296450,3.122479,3488.2,3488.1,4.70408931]
[1641439296652,2.31152435,3488.7,3488.1,4.70408931]
[1641439296952,2.31152435,3488.7,3488.2,0.132394]
[1641439297953,2.31152435,3488.7,3488.6,2.00479]
[1641439298154,1.429,3488.8,3488.6,2.137184]
[1641439298553,1.429,3488.8,3488.7,1.19893498]
[1641439298756,1.429,3488.8,3488.7,2.19893498]
[1641439299555,1.429,3488.8,3488.7,0.25279354]
[1641439299753,1.658991,3488.8,3488.7,0.25279354]
[1641439299955,1.429,3488.8,3488.7,0.25279354]
[1641439301156,1.429,3488.8,3488.7,1.34209755]
[1641439301359,1.658991,3488.8,3488.7,1.34209755]
[1641439302964,5.55197811,3488.8,3488.7,1.34209755]
[1641439303761,16.36297811,3488.8,3488.7,1.34209755]
[1641439304363,14.78094565,3488.8,3488.7,1.34209755]
[1641439304765,11.24,3488.4,3488.1,2.00479]
[1641439304963,0.81095465,3488.9,3488.2,1.19937292]
[1641439305262,13.05095465,3488.9,3488.2,1.19937292]
[1641439305663,0.81095465,3488.9,3488.2,1.19937292]
[1641439306064,2.81574465,3488.8,3488.2,1.33176692]
[1641439307066,2.31520517,3488.7,3488.2,1.33176692]
[1641439307566,1.85216413,3488.4,3488.2,1.33176692]
[1641439308171,1.85216413,3488.4,3488.3,2.00479]
[1641439308469,0.64306413,3488.4,3488.3,2.00479]
[1641439308669,2.31520517,3488.7,3488.3,2.137184]
[1641439308869,2.31520517,3488.7,3488.5,1.5]
[1641439309271,1.85276145,3488.7,3488.6,0.132394]
[1641439310271,2.31520517,3489.0,3488.6,2.137184]
[1641439310571,2.31520517,3489.3,3488.6,2.137184]
[1641439311975,3.08694022,3489.5,3488.6,2.137184]
[1641439312174,12.24,3489.8,3489.3,2.00479]
[1641439312376,12.24,3489.8,3489.4,1.03746695]
[1641439315378,12.24,3489.8,3489.3,3.133884]
[1641439315578,1.22320162,3490.1,3489.4,0.132394]
[1641439317178,1.22320162,3490.1,3489.5,1.4299331]
[1641439317381,1.22320162,3490.1,3489.5,1.5623271]
[1641439317881,12.24,3490.2,3489.5,1.5623271]
[1641439319883,2.00479,3490.4,3489.5,1.5623271]
[1641439320186,2.00479,3490.4,3489.7,2.00479]
[1641439320582,2.00479,3490.4,3489.7,2.137184]
[1641439322187,12.24,3490.3,3489.7,2.00479]
[1641439323089,13.74,3490.3,3489.7,2.00479]
[1641439323788,1.5,3490.0,3489.7,2.00479]
[1641439323987,0.229991,3489.9,3489.7,2.00479]
[1641439324188,0.229991,3489.9,3489.5,1.4299331]
[1641439324587,1.5,3489.7,3489.3,0.9967]
[1641439325187,12.24,3490.3,3489.3,0.9967]
[1641439325389,1.5,3489.7,3489.3,0.9967]
[1641439325588,1.5,3489.7,3489.4,1.00512308]
[1641439325789,0.229991,3489.6,3489.4,1.00512308]
[1641439326388,14.24479,3489.5,3489.4,1.00512308]
[1641439326588,14.24479,3489.5,3489.3,0.9967]
[1641439326589,0.229991,3489.4,3489.3,0.9967]
[1641439327689,14.24479,3489.5,3489.3,0.9967]
[1641439327690,2.00479,3489.5,3489.3,0.9967]
[1641439327991,2.234781,3489.5,3489.3,0.9967]
[1641439328189,2.00479,3489.5,3488.6,2.00479]
[1641439328688,2.00479,3489.5,3489.4,1.9967]
[1641439328891,2.234781,3489.5,3489.4,1.9967]
[1641439329693,2.00479,3489.5,3489.4,3.27783634]
[1641439331199,2.234781,3489.5,3489.4,1.33521587]
[1641439332197,2.00479,3489.5,3489.4,1.33521587]
[1641439332596,2.00479,3489.8,3489.4,1.33521587]
[1641439332795,1.22320162,3490.6,3489.4,1.33521587]
[1641439332997,1.22320162,3490.6,3489.5,1.5]
[1641439333395,1.22320162,3490.6,3489.4,1.33521587]
[1641439333796,12.24,3490.7,3489.4,1.33521587]
[1641439334294,14.24479,3490.7,3489.9,2.00479]
[1641439334995,14.24479,3490.7,3490.0,1.00200923]
[1641439336396,2.00479,3490.3,3490.0,1.00200923]
[1641439336796,14.24479,3490.3,3490.0,1.00200923]
[1641439337198,1.5,3490.1,3489.4,0.05407953]
[1641439337398,14.24479,3490.3,3489.4,0.05407953]
[1641439338401,2.00479,3489.5,3489.4,0.05407953]
[1641439338598,2.00479,3489.5,3489.4,1.1714021]
[1641439340401,2.00479,3489.9,3489.4,1.1714021]
[1641439340602,0.54791997,3489.5,3489.4,1.1714021]
[1641439342202,1.85470084,3489.6,3489.4,1.1714021]
[1641439343804,1.85470084,3489.6,3489.5,0.132394]
[1641439344203,2.86312514,3489.8,3489.5,0.132394]
[1641439344405,3.89770182,3490.1,3489.7,2.00479]
[1641439344605,3.89770182,3490.1,3489.8,0.132394]
[1641439345005,1.85546762,3489.9,3489.8,0.132394]
[1641439346305,1.85546762,3489.9,3489.8,2.137184]
[1641439346506,1.64836762,3489.9,3489.8,2.137184]
[1641439346707,0.8107616,3490.1,3489.8,2.137184]
[1641439347108,1.23790847,3490.0,3489.8,2.137184]
[1641439348107,14.92964864,3491.0,3489.8,3.10985981]
[1641439348108,1.23790847,3489.9,3489.8,3.10985981]
[1641439349607,15.32694022,3490.9,3489.8,3.10985981]
[1641439350408,15.32694022,3490.9,3490.5,2.00479]
[1641439350620,3.08694022,3490.8,3490.5,2.00479]
[1641439350910,0.229991,3490.7,3490.5,2.00479]
[1641439351108,0.229991,3490.7,3490.6,0.9504248]
[1641439352111,0.229991,3490.7,3490.5,1.2123078]
[1641439352712,0.229991,3490.7,3490.6,0.93550222]
[1641439358519,0.17591147,3490.7,3490.6,0.93550222]
[1641439364533,2.18070147,3490.7,3490.6,0.93550222]
[1641439365332,2.69746794,3490.7,3490.6,0.93550222]
[1641439365933,2.234781,3490.7,3490.6,0.93550222]
[1641439367135,2.234781,3490.7,3490.6,0.18733959]
[1641439367335,2.00479,3490.7,3490.6,0.24141859]
[1641439367534,1.23075214,3491.0,3490.6,0.24141859]
[1641439367936,1.23075214,3491.0,3490.6,0.37381259]
[1641439368637,1.23075214,3491.1,3490.7,2.00479]
[1641439368935,1.23075214,3491.1,3490.7,2.137184]
[1641439370338,2.00479,3491.5,3490.7,2.137184]
[1641439370538,2.00479,3491.5,3490.7,4.141974]
[1641439371139,2.00479,3491.5,3490.7,5.641974]
[1641439371440,0.45766802,3491.4,3490.8,1.580427]
[1641439371639,1.8447341,3491.3,3490.9,0.132394]
[1641439373739,2.30240212,3491.4,3490.9,0.132394]
[1641439374341,2.30240212,3491.4,3490.9,0.782694]
[1641439374742,1.8447341,3491.3,3490.9,0.782694]
[1641439375940,1.8447341,3491.2,3490.9,0.782694]
[1641439376140,1.8447341,3491.2,3491.0,0.054079]
[1641439376346,1.8447341,3491.2,3491.1,0.132394]
[1641439376741,2.30766025,3491.5,3491.1,0.132394]
[1641439376941,2.30766025,3491.5,3491.1,1.56368693]
[1641439376942,2.03336025,3491.5,3491.1,1.56368693]
[1641439377445,3.08694022,3491.7,3491.1,3.06368693]
[1641439377643,3.08694022,3491.7,3491.2,1.1069674]
[1641439377843,3.08694022,3491.7,3491.3,0.132394]
[1641439378245,3.08694022,3491.7,3491.6,1.43114545]
[1641439378444,3.08694022,3491.7,3491.6,1.61761845]
[1641439378644,3.08494022,3491.7,3491.6,3.62240845]
[1641439379446,5.467,3492.1,3491.6,3.62240845]
[1641439379845,5.467,3492.1,3491.6,2.00479]
[1641439381046,5.467,3492.1,3491.5,0.97267581]
[1641439381047,5.467,3492.1,3491.2,2.40439503]
[1641439381246,18.3896,3492.1,3491.2,1.1069674]
[1641439381646,1.5,3492.0,3491.2,1.1069674]
[1641439381848,1.5,3491.4,3491.2,1.1069674]
[1641439382046,12.469991,3491.3,3490.1,1.58887581]
[1641439382246,1.5,3491.0,3490.1,0.6162]
[1641439382648,2.00479,3490.8,3490.2,1.17782337]
[1641439382846,1.5,3490.6,3490.2,1.17782337]
[1641439383046,15.74479,3490.8,3490.2,1.17782337]
[1641439384248,14.24479,3490.8,3490.2,1.17782337]
[1641439384448,2.00479,3490.8,3490.2,1.17782337]
[1641439384849,2.00479,3490.8,3490.3,0.132394]
[1641439385948,2.00479,3490.8,3490.3,1.632394]
[1641439386147,2.00479,3490.8,3490.3,0.132394]
[1641439388150,2.00479,3490.8,3490.3,0.5353]
[1641439388351,2.137184,3490.8,3490.3,0.5353]
[1641439388751,33.87299,3491.6,3490.7,2.00479]
[1641439388953,2.00479,3491.6,3490.7,2.00479]
[1641439389753,2.00479,3491.6,3490.7,3.16379285]
[1641439390855,5.467,3492.1,3491.5,3.50479]
[1641439391055,5.467,3492.1,3491.6,0.132394]
[1641439391753,5.599394,3492.1,3491.7,1.00782176]
[1641439392754,5.599394,3492.1,3492.0,2.00479]
[1641439392957,5.599394,3492.1,3492.0,2.058869]
[1641439393656,5.467,3492.1,3492.0,2.058869]
[1641439394356,2.00479,3493.0,3492.0,2.058869]
[1641439394556,2.00479,3493.0,3492.7,1.5]
[1641439394756,2.00479,3493.0,3492.8,0.186473]
[1641439395460,2.00479,3493.0,3492.9,1.10269931]
[1641439396858,3.23360764,3493.6,3492.9,1.10269931]
[1641439397060,3.23360764,3493.6,3493.0,0.132394]
[1641439397457,3.23360764,3493.6,3492.7,0.6966]
[1641439397658,3.23360764,3493.6,3493.0,1.5]
[1641439398259,3.23360764,3493.6,3493.3,1.43046168]
[1641439398462,3.23360764,3493.6,3493.4,0.054079]
[1641439398658,3.23360764,3493.6,3493.5,1.26422069]
[1641439398859,1.22881764,3493.6,3493.5,1.26422069]
[1641439399063,3.00479,3494.0,3493.5,1.26422069]
[1641439399263,3.00479,3494.0,3493.7,1.43031232]
[1641439399461,3.00479,3494.0,3493.5,1.26422069]
[1641439399462,0.229991,3493.9,3493.5,1.26422069]
[1641439399661,3.00479,3494.0,3493.5,1.26422069]
[1641439400263,3.00479,3494.0,3493.6,1.43034301]
[1641439400865,3.00479,3494.0,3493.5,1.26422069]
[1641439401065,3.00479,3494.0,3493.5,2.76422069]
[1641439401266,3.00479,3494.0,3493.5,1.26422069]
[1641439402068,3.00479,3494.0,3493.6,1.0]
[1641439403170,3.137184,3494.0,3493.6,1.0]
[1641439403369,1.5,3493.9,3493.6,1.0]
[1641439403568,0.229991,3493.8,3493.6,1.0]
[1641439404767,0.981394,3493.9,3493.7,0.054079]
[1641439404768,0.849,3493.9,3493.7,0.054079]
[1641439404969,3.00479,3494.0,3493.7,0.054079]
[1641439405168,0.229991,3493.9,3493.6,1.0]
[1641439405368,3.00479,3494.0,3493.6,1.0]
[1641439407071,2.00479,3494.0,3493.6,1.0]
[1641439411976,2.00479,3494.3,3493.6,1.0]
[1641439412378,2.00479,3494.3,3493.7,0.90505081]
[1641439412578,2.137184,3494.3,3493.7,0.90505081]
[1641439412778,2.137184,3494.3,3493.7,2.90984081]
[1641439414985,12.24,3494.2,3493.7,2.90984081]
[1641439415185,0.132394,3494.1,3493.7,2.90984081]
[1641439418486,14.24479,3494.3,3493.7,2.90984081]
[1641439418487,14.24479,3494.3,3494.1,1.867606]
[1641439418688,0.229991,3494.2,3494.1,2.867606]
[1641439419588,0.229991,3494.2,3494.1,1.59900847]
[1641439421788,2.137184,3494.3,3494.1,1.65308747]
[1641439421989,2.00479,3494.3,3494.1,2.41940847]
[1641439422992,0.229991,3494.2,3494.1,2.47348747]
[1641439423292,2.00479,3494.3,3494.1,2.47348747]
[1641439423695,2.00479,3494.3,3494.2,0.132394]
[1641439423894,2.00479,3494.3,3494.2,1.2641136]
[1641439424293,1.5,3494.7,3494.2,1.2641136]
[1641439424294,13.74,3494.7,3494.2,1.2641136]
[1641439424494,12.24,3494.7,3494.2,1.2641136]
[1641439424894,12.24,3494.7,3494.2,3.2689036]
[1641439426995,3.50479,3494.8,3494.2,3.2689036]
[1641439429000,2.00479,3494.8,3494.2,3.2689036]
[1641439429198,3.50479,3494.8,3494.2,3.2689036]
[1641439429399,12.372394,3494.7,3494.2,3.2689036]
[1641439429601,1.5,3494.5,3494.2,1.1317196]
[1641439429799,1.5,3494.3,3494.2,1.1317196]
[1641439429999,1.5,3494.5,3494.2,1.1317196]
[1641439430201,1.5,3494.3,3494.2,1.1317196]
[1641439430401,0.132394,3494.2,3492.5,31.94917892]
[1641439430600,1.5,3494.1,3492.1,2.72836419]
[1641439430799,1.5,3493.8,3492.1,3.70104]
[1641439431000,1.5,3493.4,3492.7,2.00479]
[1641439431200,1.5,3493.2,3492.7,2.00479]
[1641439431402,1.5,3493.2,3492.7,2.76442179]
[1641439431603,0.132394,3493.1,3492.7,2.76442179]
[1641439431801,0.978794,3493.1,3492.7,2.76442179]
[1641439433502,0.132394,3493.1,3492.7,2.76442179]
[1641439437009,12.24,3493.5,3492.8,0.132394]
[1641439438210,12.372394,3493.5,3492.8,0.132394]
[1641439439312,0.132394,3493.5,3492.8,0.132394]
[1641439440812,0.38715995,3493.4,3492.9,1.58008542]
[1641439441013,1.22881764,3493.3,3492.9,1.58008542]
[1641439443014,1.22881764,3493.2,3492.8,1.10506981]
[1641439443816,1.22881764,3493.3,3492.9,1.58008832]
[1641439444617,1.22881764,3493.3,3493.0,0.132394]
[1641439444816,1.22881764,3493.3,3493.1,0.054079]
[1641439445216,1.22881764,3493.3,3493.2,1.632394]
[1641439445716,1.22881764,3493.3,3493.2,1.56282499]
[1641439445916,1.22881764,3493.3,3493.2,0.132394]
[1641439446317,0.38715995,3493.4,3493.2,0.132394]
[1641439446815,0.38715995,3493.4,3493.3,0.054079]
[1641439447017,0.61715095,3493.4,3493.2,0.132394]
[1641439447215,1.33885095,3493.4,3493.1,2.00479]
[1641439447416,0.951691,3493.4,3493.1,2.00479]
[1641439447619,0.951691,3493.4,3493.3,0.60731211]
[1641439448616,0.229991,3493.4,3493.3,0.60731211]
[1641439449219,0.61765087,3493.4,3493.1,2.97545269]
[1641439450621,0.38765987,3493.3,3493.1,2.00479]
[1641439451427,0.38765987,3493.4,3493.1,2.00479]
[1641439451624,0.229991,3493.3,3493.1,2.00479]
[1641439452726,0.38765987,3493.4,3493.2,0.054079]
[1641439452928,0.38765987,3493.4,3493.1,2.137184]
[1641439453529,0.38765987,3493.5,3493.1,2.137184]
[1641439454844,12.76005387,3493.5,3493.2,2.54982573]
[1641439455041,0.229991,3493.4,3493.2,2.54982573]
[1641439455242,0.229991,3493.4,3493.2,1.57797144]
[1641439455443,0.132394,3493.3,3493.2,1.57797144]
[1641439456043,0.132394,3493.3,3493.2,1.63205044]
[1641439456443,0.132394,3493.3,3493.2,1.57797144]
[1641439456658,0.132394,3493.3,3493.2,0.97066269]
[1641439456844,0.132394,3493.3,3493.1,2.00479]
[1641439457245,0.229991,3493.2,3493.1,2.00479]
[1641439457450,0.229991,3493.2,3493.0,0.97066269]
[1641439457645,0.132394,3493.1,3493.0,0.97066269]
[1641439457845,0.132394,3493.1,3492.7,2.05705942]
[1641439458046,1.43130112,3493.2,3492.7,2.05705942]
[1641439458245,0.632394,3492.8,3492.7,2.05705942]
[1641439458446,1.387785,3492.8,3492.7,0.75963179]
[1641439459046,1.387785,3492.8,3492.6,1.29742763]
[1641439459446,2.00479,3492.7,3492.4,1.62254754]
[1641439459646,12.469991,3492.6,3492.4,1.62254754]
[1641439459847,12.469991,3492.6,3492.5,0.81138178]
[1641439460048,13.102385,3492.6,3492.1,1.92923679]
[1641439460249,0.632394,3492.3,3492.1,1.92923679]
[1641439460446,0.229991,3492.2,3492.1,1.92923679]
[1641439460646,0.229991,3492.2,3492.0,1.29442194]
[1641439461646,0.862385,3492.2,3492.0,1.29442194]
[1641439461946,0.229991,3492.2,3492.1,0.76615559]
[1641439463146,0.632394,3492.5,3492.2,0.770009]
[1641439463349,12.24,3492.6,3492.2,0.770009]
[1641439463646,2.00479,3492.7,3492.5,0.867606]
[1641439463849,4.14809985,3492.8,3492.5,0.867606]
[1641439464047,4.14809985,3492.8,3492.7,0.867606]
[1641439464248,2.30644051,3492.8,3492.7,1.653306]
[1641439464448,2.30644051,3492.8,3492.7,1.015691]
[1641439464648,2.30644051,3492.8,3492.7,1.95906282]
[1641439465451,12.24,3492.9,3492.7,2.56647657]
[1641439466249,2.00479,3493.2,3492.8,0.132394]
[1641439466450,2.00479,3493.2,3493.1,0.867606]
[1641439466655,4.31123051,3493.6,3493.1,1.097597]
[1641439466849,4.31123051,3493.6,3493.5,0.867606]
[1641439467051,4.31123051,3493.6,3493.5,0.7359]
[1641439467250,4.31123051,3493.6,3493.5,0.868294]
[1641439467449,4.31123051,3493.6,3493.5,1.098285]
[1641439467652,4.31123051,3493.6,3493.5,2.49701175]
[1641439467852,2.30644051,3493.6,3493.5,2.49701175]
[1641439468250,3.06943223,3493.8,3493.5,2.49701175]
[1641439468450,2.30644051,3494.0,3493.5,2.49701175]
[1641439469051,2.30644051,3494.0,3493.9,0.867606]
[1641439469250,2.30644051,3494.0,3493.9,1.097597]
[1641439469251,2.32897051,3494.0,3493.9,1.097597]
[1641439469451,2.30644051,3494.0,3493.9,1.097597]
[1641439469850,2.30644051,3494.0,3493.7,0.132394]
[1641439470051,12.24,3494.1,3493.8,0.229991]
[1641439470253,12.24,3494.1,3493.9,0.867606]
[1641439470454,12.24,3494.1,3493.9,1.6254]
[1641439470653,2.30644051,3494.2,3493.9,1.6254]
[1641439470851,2.30644051,3494.2,3494.1,0.867606]
[1641439471051,2.30644051,3494.2,3494.1,1.0]
[1641439471253,2.30644051,3494.3,3493.9,0.6254]
[1641439471453,2.30644051,3494.3,3493.9,0.61186885]
[1641439471651,2.30644051,3494.3,3494.2,2.00479]
[1641439471854,2.53643151,3494.3,3494.2,2.058869]
[1641439472052,2.30644051,3494.3,3494.2,3.23254699]
[1641439473058,12.24,3494.5,3494.2,3.17846799]
[1641439473256,0.132394,3494.6,3494.2,3.17846799]
[1641439473455,12.372394,3494.6,3494.2,3.17846799]
[1641439473658,0.132394,3494.6,3494.2,3.17846799]
[1641439474457,12.372394,3494.6,3494.2,3.17846799]
[1641439474657,12.372394,3494.6,3494.2,3.31086199]
[1641439474857,2.30644051,3494.7,3494.2,3.31086199]
[1641439476158,12.24,3494.8,3494.2,3.31086199]
[1641439476159,2.30644051,3494.6,3494.2,3.31086199]
[1641439477360,2.30644051,3494.7,3494.2,3.31086199]
[1641439478162,2.30644051,3494.7,3494.6,0.1133]
[1641439478360,2.53643151,3494.7,3494.6,0.167379]
[1641439478561,2.30644051,3494.7,3494.6,1.902403]
[1641439478760,2.74180339,3494.7,3494.6,3.902403]
[1641439479160,2.97179439,3494.7,3494.6,3.902403]
[1641439480962,2.74180339,3494.7,3494.6,3.956482]
[1641439481163,2.97179439,3494.7,3494.6,3.902403]
[1641439481363,15.21179439,3494.7,3494.6,3.770009]
[1641439481562,15.34418839,3494.7,3494.6,3.770009]
[1641439481762,16.84418839,3494.7,3494.6,3.770009]
[1641439482964,15.34418839,3494.7,3494.6,3.770009]
[1641439483568,17.34897839,3494.7,3494.6,3.770009]
[1641439483967,15.04253788,3494.7,3494.2,1.17367799]
[1641439484367,12.24,3494.3,3494.2,1.17367799]
[1641439484567,12.602385,3494.3,3494.2,1.17367799]
[1641439485567,12.602385,3494.3,3493.3,0.9707901]
[1641439485568,16.03817094,3494.3,3493.3,0.9707901]
[1641439485768,1.5,3494.2,3493.3,0.9707901]
[1641439486169,14.68015288,3494.3,3493.3,0.9707901]
[1641439486570,14.68015288,3494.3,3493.4,1.25763052]
[1641439486970,1.5,3494.0,3493.4,1.25763052]
[1641439487172,14.68015288,3494.3,3493.4,1.25763052]
[1641439487173,1.5,3493.5,3493.4,1.25763052]
[1641439487371,12.24,3493.4,3492.7,0.5678]
[1641439487570,2.00479,3492.9,3492.6,0.9707901]
[1641439487770,12.24,3492.8,3492.6,0.9707901]
[1641439488170,0.132394,3492.7,3492.6,0.9707901]
[1641439488370,1.033685,3492.7,3492.6,0.9707901]
[1641439488971,1.46904788,3492.7,3492.4,1.29454586]
[1641439489171,1.46904788,3492.7,3492.3,1.40694896]
[1641439489472,1.5,3492.6,3492.3,1.40694896]
[1641439489672,0.229991,3492.5,3492.3,1.40694896]